Cogmind - Beta 15 @@@ ROGUE MODE // 2025.06.20 @ 09:46:51 Player: noklam Result: Destroyed by as-68938 with Assembled Maul Performance ------------- Evolutions (0) 0 Regions Visited (2) 400 Robots Destroyed (21) 105 Value Destroyed (425) 425 Prototype IDs (3) 60 Alien Tech Used (0) 0 Bonus (0) 0 TOTAL SCORE: 990 Bonus ------- None Cogmind --------- Core Integrity 0/250 Matter 171/300 Energy 238/250 System Corruption 0% Temperature Cool (80) Movement Walking (190) Ox1 Location -10/Mines Parts ------- > --- POWER (1) -------- Ion Engine > --- PROPULSION (2) --- Aluminum Leg > --- UTILITY (2) ------ Medium Storage Unit > --- WEAPON (2) ------- Beam Cannon > --- INVENTORY (10) --- Small Storage Unit Signal Interpreter Grenade Launcher Datajack Peak State ------------ > --- POWER ------------ Light Nuclear Core > --- PROPULSION ------- Aluminum Leg Aluminum Leg > --- UTILITY ---------- Visual Processing Unit Terrain Scan Processor > --- WEAPON ----------- Beam Rifle Beam Rifle > --- INVENTORY -------- Ion Engine Small Storage Unit Medium Storage Unit Datajack [Rating: 13] Favorites ----------- Power Light Nuclear Core Engine Ion Engine Power Core Light Nuclear Core Propulsion Aluminum Leg Treads Light Treads Leg Aluminum Leg Wheel Compact Wheel Utility Terrain Scan Processor Device Sensor Array Storage Medium Storage Unit Processor Terrain Scan Processor Protection Light Armor Plating Weapon Beam Rifle Energy Gun Beam Rifle Energy Cannon Beam Cannon Ballistic Gun Light Assault Rifle Ballistic Cannon Light Cannon Launcher Grenade Launcher Build | -11 -10 -10 ------- Run | Yrd Mat Min Slots Evolved . | . . . Power . | . . . Propulsion . | . . . Utility . | . . . Weapon . | . . . Parts Attached 28 | 9 14 5 Power 4 | 2 1 1 Engine 3 | 2 . 1 Core 1 | . 1 . Reactor . | . . . Propulsion 9 | 4 2 3 Treads 2 | 2 . . Leg 5 | 2 . 3 Wheel 2 | . 2 . Hover . | . . . Flight . | . . . Utility 7 | 1 6 . Device 1 | . 1 . Storage 3 | 1 2 . Processor 2 | . 2 . Hackware . | . . . Protection 1 | . 1 . Artifact . | . . . Weapon 8 | 2 5 1 Energy Gun 2 | . 2 . Energy Cannon 1 | . . 1 Ballistic Gun 2 | 2 . . Ballistic Cannon 2 | . 2 . Launcher 1 | . 1 . Special Weapon . | . . . Impact Weapon . | . . . Slashing Weapon . | . . . Piercing Weapon . | . . . Special Melee Weapon . | . . . Unidentified Prototypes . | . . . Parts Lost 10 | . 4 6 Power 1 | . . 1 Propulsion 5 | . 3 2 Utility 1 | . . 1 Weapon 3 | . 1 2 Highest Loss Streak 4 | . 2 4 To Critical Strikes . | . . . Average Backups 3 | . 3 4 Power . | . . . Propulsion . | . . . Utility 1 | . 1 2 Weapon . | . . 1 Tool/Special . | . . . Unused Backups 4 | . 2 2 Power 1 | . 1 . Propulsion 1 | . 1 . Utility 1 | . . 1 Weapon . | . . . Tool/Special 1 | . . 1 Average Slot Usage (%) 87 | . 90 75 Engine 5 | . 5 8 Core 7 | . 8 2 Leg 15 | . 15 17 Wheel 4 | . 4 2 Device 3 | . 1 12 Storage 8 | . 7 14 Processor 10 | . 12 . Protection 5 | . 6 . Energy Gun 7 | . 9 . Energy Cannon 1 | . . 10 Ballistic Gun 2 | . 2 . Ballistic Cannon 7 | . 8 6 Launcher 5 | . 7 . Peak Build Rating 13 | 6 13 8 Average Rating 8 | 4 9 5 On Entrance 4 | . 6 8 Naked Turns . | . . . Heaviest Build 24 | 13 24 22 Greatest Support 40 | 40 20 20 Greatest Overweight (x) 7 | 2 7 4 Average Overweight (x) . | . . . Largest Inventory Capacity 10 | 8 10 10 Average Capacity 7 | 7 7 10 Most Carried 6 | 2 5 6 Average Carried 3 | . 3 4 Final Capacity 10 | 8 10 10 Final Carried 5 | 1 5 4 Class Distribution -------------------- 100% | Mutant Dominant Class ---------------- Mutant | -10/Materials Mutant | -10/Mines Resources | -11 -10 -10 ----------- Run | Yrd Mat Min Matter Collected 561 | 220 272 69 Remotely . | . . . Salvage Created 457 | . 400 57 Parts 23 | . 19 4 Haulers Intercepted . | . . . Recyclers Shooed . | . . . Parts Field Recycled . | . . . Retrieved Matter . | . . . Parts Self-Destructed . | . . . Prevented . | . . . Kills | -11 -10 -10 ------- Run | Yrd Mat Min Combat Hostiles Destroyed 14 | . 12 2 Guns 8 | . 8 . Cannons 4 | . 2 2 AOE 2 | . 2 . Classes Destroyed 6 | . 6 . Worker 1 | . 1 . Builder 3 | . 3 . Recycler 1 | . 1 . Watcher 2 | . 2 . Swarmer 6 | . 6 . Grunt 8 | . 6 2 Best Kill Streak 6 | . 6 2 Combat Bots Only 3 | . 3 2 Max Kills in Single Turn 4 | . 4 1 Gunslinging . | . . . Exploded 1 | . 1 . Melee . | . . . Uniques/NPCs Destroyed . | . . . Combat | -11 -10 -10 -------- Run | Yrd Mat Min Hostile Shots Fired 129 | . 77 52 Missed 36 | . 24 12 Hits 93 | . 53 40 Melee 5 | . . 5 Projectile 88 | . 53 35 Critical Strikes 3 | . 1 2 Damage Taken 1268 | . 683 585 Core 256 | . 111 145 Absorbed by Shields . | . . . Core Remaining (%) 100 | 100 . . Volleys Fired 72 | . 50 22 Largest 2 | . 2 2 Hottest 112 | . 112 60 Shots Fired 114 | . 85 29 Gun 56 | . 56 . Cannon 44 | . 15 29 Launcher 14 | . 14 . Special . | . . . Kinetic 30 | . 15 15 Thermal 70 | . 56 14 Explosive 14 | . 14 . Electromagnetic . | . . . Robot Hit Streak 5 | . 5 3 Robot Miss Streak 4 | . 4 4 Penetration Max . | . . . Secondary Targets . | . . . Shots Hit Robots 59 | . 44 15 Core Hits 33 | . 29 4 Critical Kills . | . . . Critical Parts Destroyed . | . . . Critical Strikes 4 | . 3 1 Burn 2 | . 2 . Blast 2 | . 1 1 Melee Attacks . | . . . Impact . | . . . Slashing . | . . . Piercing . | . . . Sneak Attacks . | . . . Combat Hostiles . | . . . Follow-up Attacks . | . . . Damage Inflicted 1413 | . 1152 261 Guns 418 | . 418 . Cannons 424 | . 163 261 Explosions 571 | . 571 . Melee . | . . . Ramming . | . . . Kinetic 284 | . 163 121 Thermal 558 | . 418 140 Explosive 571 | . 571 . Electromagnetic . | . . . Impact . | . . . Slashing . | . . . Piercing . | . . . Highest Corruption . | . . . Average Corruption . | . . . Corruption Purged . | . . . Corruption Blocked . | . . . Overload Shots . | . . . Overflow Damage 23 | . 21 2 Projectiles 2 | . . 2 Explosions 21 | . 21 . Melee . | . . . Knockbacks 3 | . . 3 Impact . | . . . Kinetic 3 | . . 3 Secondary . | . . . Self-Inflicted Damage 88 | . 88 . Shots 3 | . 3 . Rammed . | . . . Targets Rammed . | . . . Kicked . | . . . Crushed . | . . . Highest Temperature 402 | . 402 202 Average Temperature 122 | . 136 69 Received Heat Transfer 552 | . 294 258 Effects 12 | . 12 . Shutdowns 1 | . 1 . Interference 7 | . 7 . Short Circuit 1 | . 1 . Damage (minor) 3 | . 3 . Siege Activations . | . . . Martial Activations . | . . . Shielding Activations . | . . . Robots Disrupted . | . . . Combat Hostiles . | . . . Robots Corrupted . | . . . Combat Hostiles . | . . . Parts Fried . | . . . Impact Corruptions . | . . . Robots Melted . | . . . Combat Hostiles . | . . . Parts Melted 4 | . 4 . Heat Transferred 1517 | . 1221 296 Parts Sabotaged . | . . . Parts Stolen . | . . . Parts Stripped . | . . . Power Chain Reactions . | . . . Alert | -11 -10 -10 ------- Run | Yrd Mat Min Maximum Alert Level . | . . . Low Security (%) 100 | 100 100 100 Level 1 . | . . . Level 2 . | . . . Level 3 . | . . . Level 4 . | . . . Level 5 . | . . . High Security . | . . . Max Security . | . . . Peak Influence 111 | . 111 50 Initial 17 | . . 17 Average 40 | . 49 13 Influence Increases 501 | . 451 50 Destroy 0b10 Robot/C 280 | . 240 40 Destroy 0b10 Robot/NC 35 | . 35 . Destroy Leader 74 | . 64 10 Successful Hack 34 | . 34 . Destroy Structure 78 | . 78 . Influence Decreases 501 | . 406 95 Entered New Map 28 | . . 28 Time Decay 426 | . 366 60 Lost Part 47 | . 40 7 Squads Dispatched 2 | . 2 . Investigation 2 | . 2 . Extermination . | . . . Reinforcement . | . . . Assault . | . . . Garrison . | . . . Intercept . | . . . Searches Triggered . | . . . Construction Impeded . | . . . Haulers Reinforced . | . . . Active Scanning Responses . | . . . Cargo Convoy Interrupts . | . . . Stealth | -11 -10 -10 --------- Run | Yrd Mat Min Distress Signals 1 | . 1 . Communications Jammed . | . . . Distress Signals . | . . . Times Spotted 27 | . 23 4 Peak Tracking Total 5 | . 4 5 Tactical Retreats 1 | . . 1 Traps | -11 -10 -10 ------- Run | Yrd Mat Min Traps Triggered 1 | . 1 . Indirectly . | . . . Trap Hack Attempts . | . . . Triggered . | . . . Disarmed . | . . . Reprogrammed . | . . . Reused . | . . . Traps Extracted . | . . . Installed . | . . . Triggered . | . . . Machines | -11 -10 -10 ---------- Run | Yrd Mat Min Machines Disabled . | . . . Max in Single Turn . | . . . Machines Repaired . | . . . Machines Dismantled . | . . . Machines Sabotaged . | . . . Overloaded Fab Kills . | . . . Hacking | -11 -10 -10 --------- Run | Yrd Mat Min Machines Accessed 5 | . 5 . Terminals 3 | . 3 . Fabricators . | . . . Repair Stations . | . . . Recycling Units 2 | . 2 . Scanalyzers . | . . . Garrison Access . | . . . Total Hacks 17 | . 17 . Successful 14 | . 14 . Failed 3 | . 3 . Catastrophic . | . . . Database Lockouts . | . . . Manual . | . . . Terminals 10 | . 10 . Fabricators . | . . . Repair Stations . | . . . Recycling Units 7 | . 7 . Scanalyzers . | . . . Garrison Access . | . . . Terminal Hacks 9 | . 9 . Prototype ID Bank 2 | . 2 . Repair Station Index 1 | . 1 . Recycling Unit Index 1 | . 1 . Locate Traps 1 | . 1 . Dispatch Records 1 | . 1 . Surveillance Status 1 | . 1 . Investigation Status 1 | . 1 . Recall Investigation 1 | . 1 . Fabricator Hacks . | . . . Repair Station Hacks . | . . . Recycling Unit Hacks 5 | . 5 . Recycle Component 1 | . 1 . Report Inventory 2 | . 2 . Retrieve Matter 1 | . 1 . Retrieve Components 1 | . 1 . Scanalyzer . | . . . Garrison Access Hacks . | . . . Unauthorized Hacks . | . . . Terminals . | . . . Fabricators . | . . . Repair Stations . | . . . Recycling Units . | . . . Scanalyzers . | . . . Garrison Access . | . . . Data Cores Recovered . | . . . Used . | . . . Hacking Detections 4 | . 4 . Full Trace Events 2 | . 2 . Feedback Events . | . . . Feedback Blocked . | . . . Robot Schematics Acquired . | . . . Robots Built . | . . . Authchips . | . . . Time . | . . . Total Robot Build Rating . | . . . Part Schematics Acquired . | . . . Parts Built . | . . . Authchips . | . . . Time . | . . . Total Part Build Rating . | . . . Parts Repaired . | . . . Time . | . . . Parts Recycled 1 | . 1 . Recycled Matter . | . . . Retrieved Matter 2 | . 2 . Retrieved Components 6 | . 6 . Parts Scanalyzed . | . . . Part Schematics Acquired . | . . . Parts Damaged . | . . . Bothacking | -11 -10 -10 ------------ Run | Yrd Mat Min Used RIF Installer . | . . . Robots Hacked . | . . . Non-combat . | . . . Combat . | . . . Robot Hacks Applied . | . . . Relay Couplers Released . | . . . Fabnet Peak Effective % . | . . . Robots Rewired . | . . . Allies Hacked . | . . . Hacks Repelled . | . . . Allies | -11 -10 -10 -------- Run | Yrd Mat Min Total Allies . | . . . Largest Group . | . . . Highest-Rated Group . | . . . Highest-Rated Ally . | . . . Total Orders . | . . . Ally Attacks . | . . . Total Damage . | . . . Kills . | . . . Allies Corrupted . | . . . Allies Melted . | . . . Intel | -11 -10 -10 ------- Run | Yrd Mat Min Active Infowar (turns) 645 | . 460 185 Optics 318 | . 318 . Sensors 327 | . 142 185 Robot Analysis Total . | . . . Derelict Logs Recovered . | . . . Drone Launches . | . . . Drone Recoveries . | . . . Exploration | -11 -10 -10 ------------- Run | Yrd Mat Min Turns Passed 1469 | 120 1146 203 Spaces Moved 883 | 80 690 113 Core 55 | 7 44 4 Treads 21 | 21 . . Legs 476 | 52 326 98 Wheels 331 | . 320 11 Hover . | . . . Flight . | . . . Fastest Speed 50 | 50 100 115 Average Speed 134 | 128 136 126 Slowest Speed 400 | 160 400 250 Overloaded Moves . | . . . Propulsion Burnouts . | . . . Robots Hopped . | . . . Potential Cave-ins 4 | . 4 . Cave-ins Triggered . | . . . Exploration Rate (%) 39 | 5 91 21 Regions Visited 2 Branch Regions 1 Pre-discovered Areas . | . . . Known Exits Taken . | . . . Unknown Exits Taken 2 | 1 1 . Scrap Searched . | . . . Spaces Dug . | . . . Terrain Destroyed 93 | . 93 . Melee . | . . . Projectile . | . . . AOE 93 | . 93 . Terrain Rammed . | . . . Walls Destroyed . | . . . Machines Disabled . | . . . Actions | -11 -10 -10 --------- Run | Yrd Mat Min Total 1050 | 96 809 145 Wait 24 | . 24 . Move 881 | 79 689 113 Hop . | . . . Pick Up 29 | 6 19 4 Fast Attach 3 | 2 1 . Attach 16 | 5 7 4 Detach 3 | 1 2 . Swap 9 | 2 6 1 Drop 13 | 1 11 1 Fire 72 | . 50 22 Melee . | . . . Ram . | . . . Kick . | . . . Crush . | . . . Escape Stasis . | . . . Rewire . | . . . Trap . | . . . Miscellaneous . | . . . Route ------- -11/Scrapyard -10/Materials (discovered 4 exits: [*Mat x3] / [*Min]) -10/Mines History --------- Turn | Location | Event 2 | -11/Scrapyard | Met Revision 17 56 | -11/Scrapyard | Discovered new exit (range 15) 121 | -11/Scrapyard | Entered Materials 316 | -10/Materials | Build established: Mutant 705 | -10/Materials | Discovered new exit (range 12) 786 | -10/Materials | Discovered new exit (range 13) 1073 | -10/Materials | Discovered new exit (range 12) 1217 | -10/Materials | Discovered new exit (range 16) 1267 | -10/Materials | Entered Mines 1289 | -10/Mines | Core integrity fell below 50% 1317 | -10/Mines | Core integrity fell below 20% 1335 | -10/Mines | Lost 4 parts (1p1n2w) 1430 | -10/Mines | Assembled infested the area 1470 | -10/Mines | Destroyed by as-68938 with Assembled Maul Last Messages --------------- 01316_ Critical hit (Burn: +37). 01319_ G-47 Trooper destroyed. 01321_ Acquired 2 matter. 01328_ Acquired Aluminum Leg. 01342_ Dropped Aluminum Leg. 01343_ Acquired 30 matter. 01345_ Acquired Ion Engine. 01352_ Acquired 1 matter. 01354_ Acquired 4 matter. 01357_ Acquired 27 matter. 01358_ Acquired 2 matter. 01368_ R-06 Scavenger collects Aluminum Leg. 01371_ R-06 Scavenger collects Sml. Laser. 01429_ K-01 Serf collects debris. 01430_ ALERT: Infestation in the mines, dispatching Demolisher response squad. 01433_ K-01 Serf collects debris. 01452_ Sensor Array destroyed. 01455_ K-01 Serf cleans the Matter Pump. 01468_ Aluminum Leg destroyed. Map ----- +----------------------------------------------------+ | ??????????????????????????????????? | | ??????????????????????????????????? | | ????####?####?????????????????????? | | ???## ### ##????????????????????? | | ??## #????????????????????? | | ??# #????????????????????? | | ??# ##???????????????????? | | ???# ##??????????????????? | | ???#### ##?##??????????????? | | ??????## ## #????#####?????? | | ???????# ## #????# #?????? | | ???????# #### ###### ##????? | | ???????# #### # #????? | | ??????## #### #????? | | ????### #### #### ### #????? | | ????# #??# ## #????? | | ????## ##??# ## ##????? | | ?????####???########## ##?????? | | ???????######??????## ###??????? | | ???##### ##????## ##????????? | | ??## ###??# ##?????????? | | ??# """ #### ##??????????? | | ??# """ ## ##???????????? | | ???# """ ##???????????? | | ???## #???????????? | | ????# a@### #??????????? | | ????# a ##?#### ???????? | | ????# ####?????## #?????? | | ????# #?????????# #####?????? | | ????# #????????? #?????????? | | ????# #????????? #?????????? | | ????# #???????? #?????????? | | ????# #???????? ##?????????? | | ????# #???????## ### #??????????? | | ???? ????????# ??? #??????????? | | ???? ????????# ??? ??????????? | | ???? ????????# ???##??????????? | | ???? "????????# ???????????????? | | ???## ????????# ???????????????? | | ?????# ???????? ???????????????? | | ?????? ?????????????????????????? | | ?????? ??????????????????????????? | | ??????????????????????????????????? | | ??????????????????????????????????? | | ??????????????????????????????????? | | ??????????????????????????????????? | | ??????????????????????????????????? | | ??????????????????????????????????? | | ??????????????????????????????????? | | ??????????????????????????????????? | +----------------------------------------------------+ Best States ------------- Heat Dissipation 25 Energy Generation 14 Energy Capacity 350 Matter Stores 300 Matter Capacity 300 Sight Range 18 Robot Scan Range 14 Terrain Scan Density 85 Armor Coverage 150 Evasion (%) 55 Recoil Reduction 2 Item Schematics ----------------- None Robot Schematics ------------------ None Fabricated ------------ Nothing Repaired ---------- Nothing Alien Tech Used ----------------- None Achievements -------------- None Challenges ------------ None Game ------ Seed FrostUltimateFemtoactuators Manual? 0 Play Time 00:24:50 Cumulative 11.3 hours Start 2025.06.20 @ 09:22:08 End 2025.06.20 @ 09:46:51 Sessions 1 Manual Loads 0 Difficulty Rogue Special Mode None Game No. 17 Rogue 17 Adventurer 0 Explorer 0 Win Type - Total 0 Types 0/0/0/0/0/0/0/0/0/0 Lore% 9 Gallery% 17 Achievement% 16 Wizard Run 0 Options --------- Layout 1 ASCII 0 Keyboard 0 Movement Mouse Keybinds 0 Fullscreen 1 Font 32/SmallcapsGlow Map View 50x35 Zoom Use 1% Tactical HUD 1 Map Filters NONE Filters NONE Steam 1 RUN: eb03e89b-53d0-4757-a1f8-f247f49dc735